[Event "African Championship (W)"]
[Site "followchess.com"]
[Date "2021.05.19"]
[Round "1"]
[White "Wafa, Shahenda"]
[Black "Mugide, Safinah"]
[Result "1-0"]
[WhiteElo "2145"]
[BlackElo "1518"]
[ECO "D55"]
[WhiteFed "EGY"]
[BlackFed "UGA"]
[FCGameId "1255481092"]
[WhiteFideId "10609962"]
[BlackFideId "10005188"]
[TimeControl "7200+30"]

1. d4 {[%clk 1:30:57]} d5 {[%clk 1:30:56]} 2. c4 {[%clk 1:31:18]} e6 
{[%clk 1:31:21]} 3. Nc3 {[%clk 1:30:58]} Nf6 {[%clk 1:31:44]} 4. Bg5 
{[%clk 1:30:31]} Be7 {[%clk 1:31:38]} 5. Nf3 {[%clk 1:27:28]} O-O 
{[%clk 1:31:27]} 6. e3 {[%clk 1:26:53]} b6 {[%clk 1:30:43]} 7. Be2 
{[%clk 1:21:48]} Bb7 {[%clk 1:29:21]} 8. O-O {[%clk 1:17:56]} Ne4 
{[%clk 1:24:05]} 9. Nxe4 {[%clk 1:03:38]} dxe4 {[%clk 1:24:28]} 10. Bxe7 
{[%clk 1:03:00]} Qxe7 {[%clk 1:24:54]} 11. Nd2 {[%clk 1:02:26]} c5 
{[%clk 1:20:59]} 12. Qc2 {[%clk 0:48:06]} f5 {[%clk 1:18:00]} 13. dxc5 
{[%clk 0:42:54]} bxc5 {[%clk 1:17:29]} 14. Rfd1 {[%clk 0:38:52]} Nc6 
{[%clk 1:16:51]} 15. Nf1 {[%clk 0:33:15]} Ne5 {[%clk 1:13:40]} 16. Rd2 
{[%clk 0:30:10]} f4 {[%clk 1:02:12]} 17. exf4 {[%clk 0:25:14]} Rxf4 
{[%clk 1:02:32]} 18. Ne3 {[%clk 0:17:50]} Raf8 {[%clk 1:02:41]} 19. Bf1 
{[%clk 0:12:02]} Qg5 {[%clk 0:55:59]} 20. Rad1 {[%clk 0:05:51]} Nf3+ 
{[%clk 0:52:42]} 21. Kh1 {[%clk 0:02:12]} Nd4 {[%clk 0:45:49]} 1-0

[Event "African Championship (W)"]
[Site "followchess.com"]
[Date "2021.05.19"]
[Round "1"]
[White "Dutt Lakshita"]
[Black "Moaataz, Ayah"]
[Result "0-1"]
[WhiteElo "1499"]
[BlackElo "2028"]
[ECO "E60"]
[WhiteFed "MAW"]
[BlackFed "EGY"]
[FCGameId "-177539285"]
[WhiteFideId "20505329"]
[BlackFideId "10615873"]
[TimeControl "7200+30"]

1. d4 {[%clk 1:30:30]} Nf6 {[%clk 1:23:45]} 2. Nf3 {[%clk 1:31:04]} g6 
{[%clk 1:24:09]} 3. c4 {[%clk 1:31:09]} Bg7 {[%clk 1:24:32]} 4. Nc3 
{[%clk 1:31:23]} O-O {[%clk 1:24:47]} 5. e3 {[%clk 1:31:34]} d6 {[%clk 1:25:10]} 
6. Be2 {[%clk 1:31:57]} Nc6 {[%clk 1:25:24]} 7. O-O {[%clk 1:29:13]} e5 
{[%clk 1:25:35]} 8. a3 {[%clk 1:22:25]} Ne8 {[%clk 1:24:23]} 9. dxe5 
{[%clk 1:16:28]} dxe5 {[%clk 1:23:33]} 10. Qxd8 {[%clk 1:10:51]} Nxd8 
{[%clk 1:23:38]} 11. Rd1 {[%clk 1:08:42]} Nc6 {[%clk 1:20:34]} 12. Ra2 
{[%clk 0:59:12]} h6 {[%clk 1:16:52]} 13. b4 {[%clk 0:57:26]} Be6 
{[%clk 1:16:03]} 14. Ne4 {[%clk 0:50:06]} b6 {[%clk 1:15:04]} 15. Nc3 
{[%clk 0:48:22]} f5 {[%clk 1:13:09]} 16. Nd5 {[%clk 0:47:29]} Rf7 
{[%clk 1:07:46]} 17. Rad2 {[%clk 0:44:27]} Rc8 {[%clk 1:07:05]} 18. c5 
{[%clk 0:34:00]} Nb8 {[%clk 1:06:47]} 19. Bc4 {[%clk 0:27:22]} c6 
{[%clk 1:00:31]} 20. Nxb6 {[%clk 0:25:55]} Bxc4 {[%clk 0:58:20]} 21. Nxc8 
{[%clk 0:23:44]} Bb3 {[%clk 0:58:04]} 22. Re1 {[%clk 0:22:55]} Rc7 
{[%clk 0:57:42]} 23. Rd8 {[%clk 0:21:55]} Kf7 {[%clk 0:57:28]} 24. Nxa7 
{[%clk 0:19:25]} Nd7 {[%clk 0:56:48]} 25. Nxc6 {[%clk 0:18:00]} Rxc6 
{[%clk 0:56:31]} 26. Rxd7+ {[%clk 0:18:23]} Kf8 {[%clk 0:56:49]} 27. Bb2 
{[%clk 0:17:41]} e4 {[%clk 0:56:50]} 28. Bxg7+ {[%clk 0:17:57]} Nxg7 
{[%clk 0:57:15]} 29. Nd4 {[%clk 0:18:21]} Be6 {[%clk 0:56:58]} 30. Rd8+ 
{[%clk 0:18:42]} 0-1